[Event "Turkish Youth Championships 2023"]
[Site "Samsun"]
[Date "2023.05.20"]
[Round "2.10"]
[White "Firtina, Oguzhan"]
[Black "Demirbas, Emre"]
[Result "0-1"]
[WhiteElo "1358"]
[BlackElo "2013"]
[Annotator "TA"]
[PlyCount "114"]
[EventDate "2023.05.19"]
[EventType "swiss"]
[EventCountry "TUR"]
[TimeControl "5400+30"]

{[%evp 24,114,38,35,77,71,80,69,93,4,26,25,25,10,25,-58,-62,-49,-75,-97,-98,-102,-27,-30,-27,-30,-31,-68,-42,-69,-59,-51,-63,-49,0,-87,-48,-52,-31,-106,-106,-112,-96,-107,-86,-297,-295,-431,-425,-419,-416,-484,-454,-636,-454,-484,-480,-517,-517,-517,-510,-510,-510,-510,-509,-507,-502,-884,-816,-956,-938,-4782,-1898,-5712,-5712,-29983,-29984,-29984,-29974,-29978,-29979,-29979,-29980,-29985,-29986,-29988,-29987,-29987,-29988,-29988,-29989,-29989,-29987]} 1. e4 {[%emt 0:01:00]} c5 {[%emt 0:01:00]} 2. Nf3 {[%emt 0:00:30]} e6 {[%emt 0:00:30]} 3. d4 {[%emt 0:00:30]} cxd4 {[%emt 0:00:30]} 4. Nxd4 {[%emt 0:00:30]} Nf6 {[%emt 0:00:30]} 5. Nc3 {[%emt 0:00:30]} Nc6 {[%emt 0:00:30]} 6. Ndb5 {[%emt 0:00:30]} d6 {[%emt 0:00:30]} 7. Bf4 {[%emt 0:00:30]} e5 {[%emt 0:00:30]} 8. Bg5 {[%emt 0:00:30]} a6 {[%emt 0:00:30]} 9. Na3 {[%emt 0:00:30]} b5 {[%emt 0:00:30]} 10. Nd5 {[%emt 0:00:30]} Be7 {[%emt 0:00:30][%cal Bf8e7,Be7f6,Bf6g5][%mdl 32]} 11. Bxf6 {[%emt 0:00:30]} Bxf6 {[%emt 0:00:30]} 12. c3 {[%emt 0:00:30]} Bg5 {[%emt 0:00:00] 12...Rb8 is the modern continuation.} 13. Nc2 {[%emt 0:00:00][%cal Oh2h4] Excellent horsemanship.} Be6 {[%emt 0:00:00] B33: Sicilian: Pelikan and Sveshnikov Variations.} 14. a4 {[%emt 0:01:00]} bxa4 {[%emt 0:00:30]} 15. Rxa4 {[%emt 0:00:30]} O-O {[%emt 0:06:30] White is slightly better.} 16. Nce3 {[%emt 0:49:30]} (16. Bxa6 $16 Ne7 17. Nxe7+ Qxe7 18. Nb4) 16... Bxe3 {[%emt 0:00:30]} 17. Nxe3 {[%emt 0:00:30][%cal Of1c4] [#]} Qb6 $146 {[%emt 0:03:30]} ({Predecessor:} 17... Ne7 18. Bc4 Qd7 19. O-O Rfd8 20. Nd5 Nxd5 21. exd5 Bg4 22. Qa1 Rac8 23. Bxa6 Rc5 {1-0 Strnad,J (1980)-Kotal,V (2070) Klatovy op-A 23rd 2017 (7)}) 18. b4 {[%emt 0:03:30]} (18. Qxd6 Qxb2 19. Qd2 (19. Qxc6 $2 Rfc8 $19) 19... Qb1+ 20. Qd1 Qb2 $11) (18. Qd2 $5 {[%cal Rf1c4]}) 18... Ne7 {[%emt 0:02:30][%cal Bc6e7,Be7c8,Bc8b6][%mdl 32]} 19. Nd5 {[%emt 0:10:30]} ({Better is} 19. Bd3 $11) 19... Bxd5 $15 {[%emt 0:00:30]} 20. exd5 {[%emt 0:00:30]} a5 {[%emt 0:01:30] White must now prevent ...axb4.} 21. b5 {[%emt 0:01:30]} Qc5 {[%emt 0:01:30][%csl LRc3,LRd5]} 22. c4 {[%emt 0:00:30]} e4 {[%emt 0:00:30] White is weak on the dark squares} (22... Nc8 $1 $17 {[%cal Rc8b6] And now ...Nb6 would win.} 23. Ra1 Nb6) 23. Be2 $11 {[%emt 0:03:30]} Nc8 {[%emt 0:02:30]} 24. O-O {[%emt 0:07:20]} Nb6 {[%emt 0:00:30]} 25. Ra1 {[%emt 0:00:26]} a4 {[%emt 0:01:30] Black is more active.} (25... Nxc4 $2 26. Rc1 $18) 26. Qc2 {[%emt 0:04:55]} f5 {[%emt 0:01:30]} (26... e3 {looks sharper.} 27. Qf5 a3 28. Bd3 g6) 27. Rfc1 {[%emt 0:04:28]} Rfc8 {[%emt 0:02:30]} 28. Qd2 {[%emt 0:03:31]} a3 {[%emt 0:02:30]} (28... Re8 $15 {is more appropriate.}) 29. Qe3 {[%emt 0:02:10]} (29. g4 $11 {remains equal.}) 29... Ra4 {[%emt 0:03:30]} 30. Qxc5 {[%emt 0:02:15]} Rxc5 {[%emt 0:00:30]} 31. g3 {[%emt 0:01:08] [#]} ({White should try} 31. f3 $15) 31... Rc8 $1 $17 {[%emt 0:04:30]} (31... Nxc4 $6 32. Bxc4 Rcxc4 33. Rxc4 Rxc4 34. Rxa3 $11) (31... a2 $6 32. Rc2 $11) 32. Rc3 {[%emt 0:02:11]} a2 {[%emt 0:00:00]} (32... Nxc4 $6 33. Bxc4 Rcxc4 34. Rxc4 (34. Rcxa3 Rxa3 35. Rxa3 Rb4 $11) 34... Rxc4 35. Rxa3 $11) 33. Rc2 {[%emt 0:00:05]} Rca8 {[%emt 0:01:00]} (33... Nxc4 $6 34. Raxa2 Rxa2 35. Rxa2 $11) 34. c5 $2 {[%emt 0:00:44] This move loses the game for White.} (34. Kg2 $17) 34... dxc5 $19 {[%emt 0:00:00]} ({Don't take} 34... Nxd5 35. Bc4 Rxc4 36. Rxc4 $18) 35. Rxc5 {[%emt 0:00:00] [#]} (35. g4 $142) 35... Rb4 $1 {[%emt 0:00:00]} 36. Rcc1 {[%emt 0:00:15]} Kf8 {[%emt 0:00:30]} ({Not} 36... Nxd5 37. Bc4 Rxc4 38. Rxc4 $16) 37. Rd1 {[%emt 0:01:00]} Rb2 {[%emt 0:00:30]} 38. Kf1 {[%emt 0:00:31]} (38. Bf1 $142) 38... Na4 {[%emt 0:00:30] Hoping for ...Nc3.} 39. Rdc1 {[%emt 0:00:25] [#]} Nc3 $1 {[%emt 0:02:30][%mdl 576] Deflection, Promotion} 40. Rxc3 {[%emt 0:00:30]} (40. Bc4 Nxb5) 40... Rb1+ {[%emt 0:00:00]} 41. Rc1 {[%emt 0:00:13]} Rxc1+ {[%emt 0:00:00]} 42. Rxc1 {[%emt 0:00:30] aiming for Ra1.} a1=Q {[%emt 0:00:00]} (42... a1=B $2 43. b6 Be5 44. Rc6 $18) 43. Rxa1 {[%emt 0:00:00]} Rxa1+ {[%emt 0:00:00][%mdl 4096] Endgame KR-KB} 44. Kg2 {[%emt 0:00:04]} Ke7 {[%emt 0:00:00]} 45. f3 {[%emt 0:01:37]} (45. h4 $142) 45... Kd6 {[%emt 0:00:00]} 46. g4 {[%emt 0:00:36]} g6 {[%emt 0:00:30][%cal Bg7g6,Bg6g5][%mdl 32]} 47. fxe4 {[%emt 0:00:51]} fxe4 {[%emt 0:00:00]} 48. h4 {[%emt 0:00:33]} Kxd5 {[%emt 0:00:00] Threatens to win with ...Ra2.} 49. h5 {[%emt 0:00:36]} g5 {[%emt 0:00:30] Black mates.} 50. Kf2 {[%emt 0:00:10]} Ke5 {[%emt 0:00:00]} 51. Ke3 {[%emt 0:00:39]} Ra3+ {[%emt 0:00:00]} 52. Kd2 {[%emt 0:00:34]} Kd4 {[%emt 0:00:00]} 53. Ke1 {[%emt 0:00:35]} Ke3 {[%emt 0:00:00]} 54. Bd1 {[%emt 0:00:34]} Ra1 {[%emt 0:00:30]} 55. b6 {[%emt 0:00:00]} Rb1 {[%emt 0:00:00]} 56. b7 {[%emt 0:00:56]} Rxb7 {[%emt 0:00:00]} 57. Bc2 {[%emt 0:00:22]} Rb2 {[%emt 0:00:00] Weighted Error Value: White=0.74/Black=0.13 (very precise)} 0-1

[Event "Turkish Youth Championships 2023"]
[Site "Samsun"]
[Date "2023.05.20"]
[Round "2.11"]
[White "Cakmak, Kursat Kagan"]
[Black "Saka, Omer"]
[Result "0-1"]
[ECO "C02"]
[WhiteElo "1498"]
[BlackElo "1843"]
[Annotator "NA RC COMBH"]
[PlyCount "104"]
[EventDate "2023.05.19"]
[EventType "swiss"]
[EventCountry "TUR"]
[SourceTitle "playchess.com"]
[Source "ChessBase"]
[SourceQuality "1"]
[TimeControl "5400+30"]

1. e4 c5 2. c3 e6 3. d4 d5 4. e5 Nc6 5. Nf3 Qb6 6. Bd3 Nge7 7. O-O cxd4 8. Re1 Nf5 9. Bxf5 exf5 10. cxd4 Be6 11. Nc3 Be7 12. Qb3 {[%emt 0:20:30]} Qxb3 {[%emt 0:21:30]} 13. axb3 {[%emt 0:00:30]} h6 {[%emt 0:01:30]} 14. h4 {[%emt 0:03:30]} Kd7 {[%emt 0:03:30]} 15. Bd2 {[%emt 0:14:30]} Rhg8 {[%emt 0:07:30]} 16. h5 {[%emt 0:04:30]} b6 {[%emt 0:04:30]} 17. Rec1 {[%emt 0:03:30]} g5 {[%emt 0:03:30]} 18. hxg6 {[%emt 0:05:30]} fxg6 {[%emt 0:00:30]} 19. Nb5 {[%emt 0:05:30]} a6 {[%emt 0:03:30]} 20. Nd6 {[%emt 0:00:30]} g5 {[%emt 0:02:30]} 21. Rc2 {[%emt 0:04:30]} Bxd6 {[%emt 0:03:30]} 22. exd6 {[%emt 0:00:30]} Kxd6 {[%emt 0:00:30]} 23. Rac1 {[%emt 0:01:30]} Rac8 {[%emt 0:03:30]} 24. Kf1 {[%emt 0:13:30]} f4 {[%emt 0:03:30]} 25. Ne5 {[%emt 0:06:08]} Nxd4 {[%emt 0:07:30]} 26. Nf7+ {[%emt 0:02:38]} Ke7 {[%emt 0:00:30]} 27. Rc7+ {[%emt 0:00:14]} Rxc7 {[%emt 0:07:30]} 28. Rxc7+ {[%emt 0:00:02]} Bd7 {[%emt 0:01:30]} 29. Ne5 {[%emt 0:05:32]} Rd8 {[%emt 0:00:30]} 30. Bc3 {[%emt 0:00:36]} Nb5 {[%emt 0:11:21]} 31. Rb7 {[%emt 0:01:52]} Ke6 {[%emt 0:06:29]} 32. Rxb6+ {[%emt 0:00:48]} Kf5 {[%emt 0:00:39]} 33. Nf7 {[%emt 0:01:11]} Rc8 {[%emt 0:05:11]} 34. Rf6+ {[%emt 0:05:55]} Ke4 {[%emt 0:01:39]} 35. Nd6+ {[%emt 0:01:37]} Nxd6 {[%emt 0:02:16]} 36. Rxd6 {[%emt 0:00:01]} Bb5+ {[%emt 0:00:08]} 37. Ke1 {[%emt 0:00:01]} g4 {[%emt 0:01:44]} 38. Kd2 {[%emt 0:01:07]} Re8 {[%emt 0:00:21]} 39. Bg7 {[%emt 0:02:14]} h5 {[%emt 0:01:47]} 40. Rf6 {[%emt 0:00:49]} d4 {[%emt 0:01:18]} 41. Rd6 {[%emt 0:01:02]} Kf5 {[%emt 0:00:30]} 42. Bxd4 {[%emt 0:00:30]} Re2+ {[%emt 0:00:30]} 43. Kc3 {[%emt 0:00:30]} g3 {[%emt 0:00:18]} 44. Rf6+ {[%emt 0:00:32]} Kg5 {[%emt 0:00:30]} 45. fxg3 {[%emt 0:00:30]} fxg3 {[%emt 0:00:30]} 46. Rf8 {[%emt 0:00:13]} Rxg2 {[%emt 0:00:20]} 47. Rg8+ {[%emt 0:00:30]} Kf4 {[%emt 0:00:30]} 48. Rf8+ {[%emt 0:00:30]} Kg4 {[%emt 0:00:30]} 49. Be5 {[%emt 0:00:30]} h4 {[%emt 0:00:36]} 50. Kd4 {[%emt 0:00:00]} h3 {[%emt 0:00:34]} 51. Rf4+ {[%emt 0:00:47]} Kg5 {[%emt 0:00:30]} 52. Rf3 {[%emt 0:00:30]} h2 {[%emt 0:00:00]} 0-1

[Event "Turkish Youth Championships 2023"]
[Site "Samsun"]
[Date "2023.05.20"]
[Round "2.12"]
[White "Dogan, Umut Anil"]
[Black "Yilmaz, Atakan"]
[Result "1-0"]
[ECO "D02"]
[WhiteElo "1857"]
[BlackElo "1446"]
[Annotator "NA RC COMBH"]
[PlyCount "95"]
[EventDate "2023.05.19"]
[EventType "swiss"]
[EventCountry "TUR"]
[SourceTitle "playchess.com"]
[Source "ChessBase"]
[SourceQuality "1"]
[TimeControl "5400+30"]

1. d4 Nf6 2. Bf4 e6 3. e3 d5 4. Nf3 Bd6 5. Nbd2 O-O 6. Bd3 c5 7. dxc5 Bxf4 8. exf4 Qc7 9. g3 Qxc5 10. O-O b6 11. Nb3 Qc7 12. Nbd4 Ba6 13. Rc1 h6 14. Qe2 Bxd3 15. cxd3 Qd7 {[%emt 0:22:00]} 16. b3 {[%emt 0:19:30]} Na6 {[%emt 0:03:30]} 17. Ne5 {[%emt 0:00:00]} Qe7 {[%emt 0:02:30]} 18. f5 {[%emt 0:06:00]} exf5 {[%emt 0:06:30]} 19. Nxf5 {[%emt 0:00:30]} Qe6 {[%emt 0:00:00]} 20. Nd4 {[%emt 0:00:30]} Qe7 {[%emt 0:04:00]} 21. f4 {[%emt 0:02:30]} Nd7 {[%emt 0:02:30]} 22. Nf5 {[%emt 0:14:30]} Qf6 {[%emt 0:07:30]} 23. Nxd7 {[%emt 0:00:30]} Qxf5 {[%emt 0:00:00]} 24. Nxf8 {[%emt 0:00:30]} Rxf8 {[%emt 0:00:00]} 25. d4 {[%emt 0:00:30]} Nb8 {[%emt 0:05:30]} 26. Qe5 {[%emt 0:00:30]} Qd7 {[%emt 0:02:30]} 27. Rfe1 {[%emt 0:05:30]} Nc6 {[%emt 0:00:30]} 28. Qe3 {[%emt 0:00:30]} Nd8 {[%emt 0:01:30]} 29. Qe7 {[%emt 0:00:30]} Qf5 {[%emt 0:00:30]} 30. Qe5 {[%emt 0:02:30]} Qd7 {[%emt 0:00:30]} 31. f5 {[%emt 0:00:00]} f6 {[%emt 0:02:30]} 32. Qf4 {[%emt 0:00:00]} Nf7 {[%emt 0:00:30]} 33. Rc7 {[%emt 0:00:30]} Qb5 {[%emt 0:00:30]} 34. h4 {[%emt 0:00:30]} Qa5 {[%emt 0:01:30]} 35. Re2 {[%emt 0:00:30]} Qa6 {[%emt 0:01:30]} 36. Qf3 {[%emt 0:01:30]} Qb5 {[%emt 0:02:30]} 37. Ree7 {[%emt 0:01:30]} a5 {[%emt 0:02:30]} 38. a4 {[%emt 0:02:30]} Qb4 {[%emt 0:00:00]} 39. Qxd5 {[%emt 0:00:30]} Qd2 {[%emt 0:00:00]} 40. Rc8 {[%emt 0:03:30]} Qd1+ {[%emt 0:01:30]} 41. Kh2 {[%emt 0:00:30]} Qh5 {[%emt 0:00:00]} 42. Rxf8+ {[%emt 0:03:30]} Kxf8 {[%emt 0:00:00]} 43. Re3 {[%emt 0:02:30]} g5 {[%emt 0:00:30]} 44. Qf3 {[%emt 0:01:30]} g4 {[%emt 0:02:30]} 45. Qf4 {[%emt 0:00:30]} Ng5 {[%emt 0:00:30]} 46. Qd6+ {[%emt 0:00:30]} Kg7 {[%emt 0:00:30]} 47. Re7+ {[%emt 0:00:30]} Nf7 {[%emt 0:00:30]} 48. Qe6 {[%emt 0:00:00]} 1-0

[Event "Turkish Youth Championships 2023"]
[Site "Samsun"]
[Date "2023.05.20"]
[Round "2.12"]
[White "Tiryaki, Ozan"]
[Black "Engin, Onur Cinar"]
[Result "0-1"]
[WhiteElo "1419"]
[BlackElo "1922"]
[Annotator "TA"]
[PlyCount "88"]
[EventDate "2023.05.19"]
[EventType "swiss"]
[EventCountry "TUR"]
[TimeControl "5400+30"]

{[%evp 12,88,27,27,28,30,36,12,15,10,11,0,18,-20,-9,-8,-13,-17,-12,-14,-6,-7,-6,-21,-9,-8,0,-37,-40,-44,-43,-202,-131,-166,-171,-171,-171,-145,-100,-127,-122,-137,-45,-48,-13,-11,-26,-74,-100,-230,-195,-407,-300,-1027,-586,-29989,-12835,-12836,-699,-12837,-12837,-12837,-12838,-12838,-544,-12839,-12839,-12840,-12840,-12842,-12843,-12844,-12844,-12845,-12845,-12846,-12847,-12847,-12847]} 1. e4 {[%emt 0:01:00]} c6 {[%emt 0:01:00]} 2. d4 {[%emt 0:00:30]} d5 {[%emt 0:00:30]} 3. Nc3 {[%emt 0:00:30]} dxe4 {[%emt 0:00:30]} 4. Nxe4 {[%emt 0:00:30]} Nf6 {[%emt 0:00:30]} 5. Nxf6+ {[%emt 0:00:30]} exf6 {[%emt 0:00:30]} 6. c3 {[%emt 0:00:30]} Bd6 {[%emt 0:00:30]} 7. Bd3 {[%emt 0:00:30]} Na6 {[%emt 0:00:30] B15: Caro-Kann: 3 Nc3: 3...g6 and 3...dxe4 4 Nxe4 Nf6 5 Nxf6+ exf6.} 8. Ne2 {[%emt 0:00:30] 8.Ne2 is better than 8.Qc2.} Nc7 {[%emt 0:00:30]} 9. Bf4 {[%emt 0:00:00]} Bg4 {[%emt 0:01:30] The position is equal.} 10. f3 {[%emt 0:01:00] [#]} Bh5 $146 {[%emt 0:01:30]} ({Predecessor:} 10... Be6 11. Qd2 O-O 12. Bxd6 Qxd6 13. Qf4 Qd7 14. O-O Nd5 15. Qd2 a5 16. Rfe1 Rfd8 {0-1 Savitskiy,S (2437)-Eljanov,P (2671) Titled Tuesday intern op 15th June blitz 2021 (10)}) 11. O-O {[%emt 0:00:30]} O-O {[%emt 0:01:30]} 12. Qb3 {[%emt 0:25:30]} Bg6 {[%emt 0:05:30]} 13. Bxg6 {[%emt 0:03:30]} hxg6 {[%emt 0:00:30]} 14. Bg3 {[%emt 0:00:30]} (14. Qxb7 $2 {too greedy.} Bxf4 15. Nxf4 Qd6 16. Nxg6 fxg6 17. Qb3+ Nd5 $19) 14... Re8 {[%emt 0:04:30]} 15. Rfe1 {[%emt 0:06:30]} b6 {[%emt 0:15:30]} 16. Bf2 {[%emt 0:23:30]} f5 {[%emt 0:14:30]} 17. c4 {[%emt 0:02:30]} Qf6 {[%emt 0:02:30]} 18. Nc3 {[%emt 0:07:30]} (18. Rad1 {simplifies} Rad8 19. Nc3 Rxe1+ 20. Rxe1 Qg5 21. g3) 18... Qg5 {[%emt 0:05:30]} (18... Ne6 {simplifies} 19. Rad1 Nf4 20. Qc2 g5) 19. c5 {[%emt 0:16:17]} bxc5 {[%emt 0:07:30]} 20. dxc5 {[%emt 0:00:11]} Be5 {[%emt 0:01:30]} 21. Qb7 $2 {[%emt 0:01:23]} (21. Qa4 $15 Qf6 22. f4 Bxc3 23. bxc3) 21... Qf6 {[%emt 0:04:30]} 22. f4 {[%emt 0:04:50]} Bxf4 {[%emt 0:01:30] [#] Threatens to win with ...Reb8.} ({Not} 22... Bxc3 23. bxc3 Nb5 24. Rad1 $17) 23. Rxe8+ {[%emt 0:00:00]} Rxe8 {[%emt 0:00:30]} 24. Qxa7 {[%emt 0:00:19]} Rd8 {[%emt 0:12:27] Black is more active.} 25. Qa4 {[%emt 0:01:43]} Be5 {[%emt 0:04:35]} 26. Rd1 {[%emt 0:00:44] Repels Rd2} Rxd1+ {[%emt 0:00:35]} (26... Ra8 $17 27. Qc2 Ne6) 27. Qxd1 $15 {[%emt 0:01:36]} g5 {[%emt 0:02:33][%cal Oc7e6]} 28. Qd2 {[%emt 0:00:41]} g4 {[%emt 0:01:23]} 29. g3 {[%emt 0:00:27]} (29. a4 $1 $11 {deserves consideration.}) 29... Ne6 $17 {[%emt 0:01:23] Black continues to play with concentration.} 30. Kg2 {[%emt 0:01:01]} (30. a4 $17 {might work better.}) 30... f4 $19 {[%emt 0:01:24]} 31. Ne4 $2 {[%emt 0:00:04]} (31. gxf4 Nxf4+ 32. Kf1) 31... Qf5 {[%emt 0:00:23]} 32. Nd6 {[%emt 0:01:11]} (32. Qd3) 32... Qh5 {[%emt 0:01:16] [#] ( -> ...Qh3+)} 33. gxf4 {[%emt 0:00:23]} Bxf4 {[%emt 0:00:44]} (33... Qh3+ $142 34. Kg1 Bxf4 35. Bg3 Bxd2 36. Nf5 Bb4 37. Kf2 Bxc5+ 38. Ke1 Qg2 39. a3 Qc2 40. h3 Qxf5 41. b4 Qe4+ 42. Kf1 Qf3+ 43. Ke1 Nd4 44. Kd2 Qe2+ 45. Kc3 Qc2#) 34. Qd3 {[%emt 0:01:00] Black is clearly winning.} Qxh2+ {[%emt 0:00:30]} 35. Kf1 {[%emt 0:00:00]} g3 {[%emt 0:00:22][%csl Gg3][%cal Rh2f2]} 36. Qf3 {[%emt 0:00:00]} gxf2 {[%emt 0:00:26]} 37. Qxf2 {[%emt 0:00:00]} Qxf2+ {[%emt 0:00:30]} 38. Kxf2 {[%emt 0:00:00]} Bxd6 {[%emt 0:00:55]} 39. cxd6 {[%emt 0:00:00][%mdl 4096] Endgame KN-K3P} Kf8 {[%emt 0:00:00]} 40. a4 {[%emt 0:00:00]} Ke8 {[%emt 0:00:29]} 41. b4 {[%emt 0:00:00]} Kd7 {[%emt 0:00:00]} 42. a5 {[%emt 0:00:29]} Kxd6 {[%emt 0:00:08]} 43. a6 {[%emt 0:00:00]} Kc7 {[%emt 0:00:08]} 44. a7 {[%emt 0:00:13]} Kb7 {[%emt 0:00:00] Weighted Error Value: White=0.55/Black=0.40} 0-1

[Event "Turkish Youth Championships 2023"]
[Site "Samsun"]
[Date "2023.05.20"]
[Round "2.13"]
[White "Saka, Omer"]
[Black "Duygulu, Ugur"]
[Result "1-0"]
[WhiteElo "1843"]
[BlackElo "1161"]
[Annotator "COMBH"]
[PlyCount "111"]
[EventDate "2023.05.19"]
[EventType "swiss"]
[EventCountry "TUR"]
[TimeControl "5400+30"]
[BlackClock "0:02:02"]

1. d4 {[%emt 0:01:00]} d5 {[%emt 0:01:00]} 2. c4 {[%emt 0:00:30]} e6 {[%emt 0:00:30]} 3. Nf3 {[%emt 0:00:30]} Nf6 {[%emt 0:00:30]} 4. g3 {[%emt 0:00:30]} Be7 {[%emt 0:00:30]} 5. Bg2 {[%emt 0:00:30]} O-O {[%emt 0:00:30]} 6. O-O {[%emt 0:00:30]} b6 {[%emt 0:02:30]} 7. cxd5 {[%emt 0:05:30]} exd5 {[%emt 0:01:30]} 8. Nc3 {[%emt 0:00:30]} Bb7 {[%emt 0:02:30]} 9. Bf4 {[%emt 0:01:30]} Nbd7 {[%emt 0:04:30]} 10. Ne5 {[%emt 0:07:30]} Re8 {[%emt 0:12:30]} 11. Qb3 {[%emt 0:12:30]} c6 {[%emt 0:14:30]} 12. e4 {[%emt 0:04:30]} Nxe5 {[%emt 0:04:30]} 13. dxe5 {[%emt 0:02:30]} Nxe4 {[%emt 0:01:30]} 14. Nxe4 {[%emt 0:01:30]} dxe4 {[%emt 0:00:30]} 15. Bxe4 {[%emt 0:01:30]} Bc5 {[%emt 0:09:30]} 16. Qf3 {[%emt 0:08:30]} Qd7 {[%emt 0:07:30]} 17. g4 {[%emt 0:21:30]} Qe6 {[%emt 0:09:30]} 18. Rfd1 {[%emt 0:05:30]} Rad8 {[%emt 0:01:30]} 19. Rxd8 {[%emt 0:02:30]} Rxd8 {[%emt 0:00:30]} 20. Rd1 {[%emt 0:00:30]} Rxd1+ {[%emt 0:06:16]} 21. Qxd1 {[%emt 0:00:30]} Qxa2 {[%emt 0:05:18]} 22. Qc2 {[%emt 0:08:18]} g6 {[%emt 0:01:57]} 23. Qd2 {[%emt 0:05:14]} Qe6 {[%emt 0:03:26]} 24. h3 {[%emt 0:00:23]} Be7 {[%emt 0:01:51]} 25. Bg3 {[%emt 0:02:15]} Qc8 {[%emt 0:02:52]} 26. Qe2 {[%emt 0:03:36]} Ba6 {[%emt 0:02:19]} 27. Qf3 {[%emt 0:00:42]} Bb5 {[%emt 0:00:31]} 28. h4 {[%emt 0:00:26]} Qe6 {[%emt 0:01:36]} 29. h5 {[%emt 0:01:32]} Bg5 {[%emt 0:01:23]} 30. Qd1 {[%emt 0:01:34]} Qc4 {[%emt 0:00:36]} 31. Bg2 {[%emt 0:00:45]} Qe2 {[%emt 0:00:27]} 32. Qd7 {[%emt 0:00:56]} gxh5 {[%emt 0:00:55]} 33. gxh5 {[%emt 0:00:48]} Qxh5 {[%emt 0:00:21]} 34. Qe8+ {[%emt 0:00:50]} Kg7 {[%emt 0:00:06]} 35. e6 {[%emt 0:00:02]} Qd1+ {[%emt 0:01:18]} 36. Kh2 {[%emt 0:00:01]} Qh5+ {[%emt 0:00:16]} 37. Kg1 {[%emt 0:00:27]} Qd1+ {[%emt 0:00:20]} 38. Kh2 {[%emt 0:00:36]} Qh5+ {[%emt 0:00:08]} 39. Bh3 {[%emt 0:00:00]} Bf1 {[%emt 0:01:02]} 40. Be5+ {[%emt 0:00:04]} Bf6 {[%emt 0:00:45]} 41. Bxf6+ {[%emt 0:00:09]} Kxf6 {[%emt 0:00:04]} 42. Qxf7+ {[%emt 0:00:27]} Qxf7 {[%emt 0:00:30]} 43. exf7 {[%emt 0:00:30]} Kxf7 {[%emt 0:00:30]} 44. Bxf1 {[%emt 0:00:00]} Kf6 {[%emt 0:00:19]} 45. Bd3 {[%emt 0:00:00]} h6 {[%emt 0:00:00]} 46. Be4 {[%emt 0:00:02]} c5 {[%emt 0:00:00]} 47. Bd3 {[%emt 0:00:33]} h5 {[%emt 0:01:34]} 48. Kg3 {[%emt 0:00:05]} Kg5 {[%emt 0:00:19]} 49. f4+ {[%emt 0:00:57]} Kf6 {[%emt 0:00:02]} 50. Kh4 {[%emt 0:00:00]} a5 {[%emt 0:00:30]} 51. b3 {[%emt 0:01:10]} Ke6 {[%emt 0:02:00]} 52. Kg5 {[%emt 0:00:30]} h4 {[%emt 0:00:00]} 53. f5+ {[%emt 0:00:00]} Kf7 {[%emt 0:00:19]} 54. Bc4+ {[%emt 0:00:00]} Ke7 {[%emt 0:00:22]} 55. f6+ {[%emt 0:00:28]} Kf8 {[%emt 0:00:30]} 56. Kxh4 {[%emt 0:00:00]} 1-0

[Event "Turkish Youth Championships 2023"]
[Site "Samsun"]
[Date "2023.05.20"]
[Round "2.13"]
[White "Topaloglu, Mehmet Utkan"]
[Black "Aydogdu, Cagatay"]
[Result "0-1"]
[ECO "B27"]
[WhiteElo "1511"]
[BlackElo "1856"]
[Annotator "NA RC COMBH"]
[PlyCount "128"]
[EventDate "2023.05.19"]
[EventType "swiss"]
[EventCountry "TUR"]
[SourceTitle "playchess.com"]
[Source "ChessBase"]
[SourceQuality "1"]
[TimeControl "5400+30"]

1. e4 g6 2. d4 Bg7 3. Nf3 c6 4. c4 d5 5. cxd5 cxd5 6. e5 Bg4 7. Bb5+ Nc6 8. Nbd2 e6 9. Bxc6+ bxc6 10. O-O Ne7 11. h3 Bxf3 12. Nxf3 h6 13. Qa4 O-O 14. g4 Qb6 15. Bd2 Rab8 16. a3 Qb3 17. Qxb3 Rxb3 18. Bc3 {[%emt 0:25:30]} Rc8 {[%emt 0:17:30]} 19. Nd2 {[%emt 0:04:30]} Rb7 {[%emt 0:00:30]} 20. b4 {[%emt 0:03:30]} g5 {[%emt 0:02:30]} 21. f4 {[%emt 0:18:30]} Ng6 {[%emt 0:02:30]} 22. f5 {[%emt 0:02:30]} Nf4 {[%emt 0:00:30]} 23. Rxf4 {[%emt 0:01:30]} gxf4 {[%emt 0:00:30]} 24. f6 {[%emt 0:00:30]} Bf8 {[%emt 0:00:30]} 25. Nb3 {[%emt 0:00:00]} Rb6 {[%emt 0:03:30]} 26. Kg2 {[%emt 0:03:00]} Ra6 {[%emt 0:02:30]} 27. Na5 {[%emt 0:01:30]} Rxa5 {[%emt 0:02:30]} 28. bxa5 {[%emt 0:00:00]} Rb8 {[%emt 0:02:30]} 29. Ra2 {[%emt 0:02:00]} Rb3 {[%emt 0:00:30]} 30. Bd2 {[%emt 0:00:00]} f3+ {[%emt 0:00:30]} 31. Kf2 {[%emt 0:00:00]} c5 {[%emt 0:01:30]} 32. Be3 {[%emt 0:09:30]} c4 {[%emt 0:07:30]} 33. Kxf3 {[%emt 0:01:30]} Bxa3 {[%emt 0:00:30]} 34. Ke2 {[%emt 0:03:30]} Bb4 {[%emt 0:03:30]} 35. h4 {[%emt 0:04:30]} a6 {[%emt 0:01:30]} 36. Ra1 {[%emt 0:03:30]} Rb2+ {[%emt 0:03:30]} 37. Kf3 {[%emt 0:00:30]} Bc3 {[%emt 0:03:30]} 38. Rg1 {[%emt 0:02:30]} Bxa5 {[%emt 0:10:30]} 39. g5 {[%emt 0:00:30]} c3 {[%emt 0:18:30]} 40. gxh6+ {[%emt 0:00:30]} Kh8 {[%emt 0:00:00]} 41. h7 {[%emt 0:05:24]} c2 {[%emt 0:08:44]} 42. Rg8+ {[%emt 0:05:49]} Kxh7 {[%emt 0:00:10]} 43. Rc8 {[%emt 0:00:00]} Bb6 {[%emt 0:02:04]} 44. Kg4 {[%emt 0:00:37]} Bxd4 {[%emt 0:01:52]} 45. Bxd4 {[%emt 0:04:36]} Rb4 {[%emt 0:00:30]} 46. Rxc2 {[%emt 0:00:30]} Rxd4+ {[%emt 0:00:30]} 47. Kg3 {[%emt 0:00:30]} Re4 {[%emt 0:00:35]} 48. Rc7 {[%emt 0:00:00]} Rxe5 {[%emt 0:01:21]} 49. Rxf7+ {[%emt 0:00:00]} Kg6 {[%emt 0:00:00]} 50. Ra7 {[%emt 0:00:00]} Kxf6 {[%emt 0:01:05]} 51. Rxa6 {[%emt 0:00:21]} Kf5 {[%emt 0:00:09]} 52. Ra8 {[%emt 0:00:30]} Re3+ {[%emt 0:00:30]} 53. Kg2 {[%emt 0:00:04]} Kg4 {[%emt 0:00:00]} 54. Rh8 {[%emt 0:00:14]} Re5 {[%emt 0:00:34]} 55. Rh6 {[%emt 0:00:30]} d4 {[%emt 0:00:30]} 56. Kf2 {[%emt 0:00:30]} d3 {[%emt 0:00:30]} 57. Rg6+ {[%emt 0:00:21]} Kxh4 {[%emt 0:00:00]} 58. Rg8 {[%emt 0:00:16]} Re2+ {[%emt 0:00:52]} 59. Kf3 {[%emt 0:00:34]} e5 {[%emt 0:00:30]} 60. Rd8 {[%emt 0:00:30]} e4+ {[%emt 0:00:30]} 61. Kf4 {[%emt 0:00:30]} Kh3 {[%emt 0:00:30]} 62. Rh8+ {[%emt 0:00:00]} Kg2 {[%emt 0:00:53]} 63. Rg8+ {[%emt 0:00:11]} Kf1 {[%emt 0:00:30]} 64. Rh8 {[%emt 0:00:30]} Ke1 {[%emt 0:00:00]} 0-1